[Event "Qatar Masters 2024"]
[Site "Doha"]
[Date "2024.12.03"]
[Round "1.35"]
[White "Aziz, Husain"]
[Black "Xu, Zhihang"]
[Result "1/2-1/2"]
[Annotator "TA"]
[ECO "D00"]
[WhiteElo "2346"]
[BlackElo "2511"]
[PlyCount "78"]
[EventDate "2024.11.24"]
[EventType "swiss"]
[EventCountry "QAT"]
[SourceTitle "playchess.com"]
[Source "ChessBase"]
[SourceQuality "1"]
[TimeControl "40/5400+30:1800+30"]

{[%evp 9,78,-3,1,-3,-11,-13,27,18,0,0,26,28,36,35,58,18,16,20,22,15,21,8,50,34,35,47,33,17,43,12,39,19,20,9,35,20,41,18,28,17,33,32,22,25,18,10,23,22,27,27,41,0,0,0,7,0,17,9,37,-23,0,0,0,0,0,0,0,0,0,-20,-27]} 1. d4 {[%emt 0:00:10]} Nf6 {[%emt 0:00:18]} 2. Nf3 {[%emt 0:00:17]} g6 {[%emt 0:00:23]} 3. Nc3 {[%emt 0:00:44]} d5 {[%emt 0:00:47]} 4. Bf4 {[%emt 0:00:17]} Bg7 {[%emt 0:02:06]} 5. Nb5 {[%emt 0:00:30]} Na6 {[%emt 0:00:08]} 6. e3 {[%emt 0:00:18]} O-O {[%emt 0:01:08]} 7. h3 {[%emt 0:03:09]} c5 {[%emt 0:05:20]} 8. c3 {[%emt 0:02:15] White has an edge.} Bd7 {[%emt 0:01:27]} 9. a4 {[%emt 0:03:41]} Qb6 {[%emt 0:06:19]} (9... c4 $5) 10. Be2 {[%emt 0:03:45]} Rfc8 {[%emt 0:00:59]} 11. O-O {[%emt 0:03:51]} cxd4 {[%emt 0:01:19]} 12. exd4 {[%emt 0:01:37]} Nb8 {[%emt 0:00:07]} 13. Ra2 {[%emt 0:34:21]} Nc6 {[%emt 0:04:14]} 14. Re1 {[%emt 0:02:06]} a6 {[%emt 0:00:07][%cal Of6h5] [#] Hoping for ...Nh5!} 15. Na3 {[%emt 0:00:38][%cal Bb5a3,Ba3b1,Bb1d2,Bd2f3,Bf3h2,Bh2g4][%mdl 32]} e6 {[%emt 0:06:02]} 16. Nb1 {[%emt 0:03:41]} Na5 {[%emt 0:05:35]} 17. Nbd2 {[%emt 0:01:00]} Qd8 {[%emt 0:00:06]} 18. Bf1 {[%emt 0:05:37]} Be8 {[%emt 0:07:29]} 19. Ne5 {[%emt 0:02:43]} Nd7 {[%emt 0:00:10]} 20. Ndf3 {[%emt 0:03:10]} Nxe5 {[%emt 0:01:31]} 21. Bxe5 {[%emt 0:01:01]} f6 {[%emt 0:00:41]} 22. Bg3 {[%emt 0:00:57]} Bd7 {[%emt 0:00:08]} 23. Nh2 {[%emt 0:05:02]} Nc4 {[%emt 0:00:55][%cal Ba5c4,Bc4d6,Bd6f5][%mdl 32]} 24. Ng4 {[%emt 0:00:45]} Qf8 {[%emt 0:00:41]} 25. a5 {[%emt 0:05:04]} Nd6 {[%emt 0:01:19]} 26. Bd3 {[%emt 0:00:13]} Nf5 {[%emt 0:02:39]} 27. Bh2 {[%emt 0:00:24]} Re8 {[%emt 0:01:46]} 28. Ra1 {[%emt 0:01:57]} Qf7 {[%emt 0:04:15]} 29. Qb3 {[%emt 0:02:58]} Bc6 {[%emt 0:00:29]} 30. Re2 {[%emt 0:00:56]} Qd7 {[%emt 0:08:26]} 31. Rae1 {[%emt 0:01:35]} Kf7 {[%emt 0:00:49]} 32. Ne3 {[%emt 0:04:16]} Bf8 {[%emt 0:07:07]} 33. Qd1 {[%emt 0:01:27]} Bb5 {[%emt 0:01:14]} 34. b3 {[%emt 0:06:25]} (34. g4 $14 Nd6 35. h4) 34... Rac8 {[%emt 0:02:13]} (34... Bxd3 {feels hotter.} 35. Qxd3 Qb5 36. c4 Qxa5 37. g4 Nxe3 38. Qxe3 Rac8) 35. Nxf5 {[%emt 0:00:24] [#] aiming for Bxb5. The position is equal.} Bxd3 {[%emt 0:01:13]} 36. Qxd3 {[%emt 0:00:07]} exf5 {[%emt 0:00:05]} 37. Rxe8 {[%emt 0:00:55]} Rxe8 {[%emt 0:00:05]} 38. Rxe8 {[%emt 0:00:40]} Qxe8 {[%emt 0:00:07]} 39. Kf1 {[%emt 0:00:19] Prevents Qe1+} Qe4 {[%emt 0:06:05] Weighted Error Value: White=0.11 (very precise) /Black=0.10 (very precise) .  Mistake:       	White=1     	---        Inaccurate:     	White=3     	Black=7      OK:         	White=10    	Black=14     Best:        	White=1     	---} 1/2-1/2

[Event "Qatar Masters 2024"]
[Site "Doha"]
[Date "2024.12.03"]
[Round "1.36"]
[White "Galaviz Medina, Sion Radamantys"]
[Black "Jani Kushal R"]
[Result "1-0"]
[Annotator "TA"]
[ECO "E42"]
[WhiteElo "2507"]
[BlackElo "2326"]
[PlyCount "87"]
[EventDate "2024.11.24"]
[EventType "swiss"]
[EventCountry "QAT"]
[SourceTitle "playchess.com"]
[Source "ChessBase"]
[SourceQuality "1"]
[TimeControl "40/5400+30:1800+30"]

{[%evp 20,87,0,0,-13,-6,-10,-20,-8,-16,-12,-20,-12,-20,1,8,18,13,24,14,14,15,16,17,16,28,41,29,48,39,56,52,114,93,125,132,118,119,117,89,71,71,76,35,41,21,35,42,31,0,16,0,0,0,107,91,267,279,267,109,655,673,672,666,664,612,853,853,4710,2267]} 1. d4 {[%emt 0:00:06]} Nf6 {[%emt 0:00:16]} 2. c4 {[%emt 0:00:05]} e6 {[%emt 0:00:05]} 3. Nc3 {[%emt 0:00:12]} Bb4 {[%emt 0:00:07]} 4. e3 {[%emt 0:00:22]} O-O {[%emt 0:00:09]} 5. Bd3 {[%emt 0:01:05]} c5 {[%emt 0:00:41]} 6. Nge2 {[%emt 0:16:30]} cxd4 {[%emt 0:00:38]} 7. exd4 {[%emt 0:00:23]} d5 {[%emt 0:00:03]} 8. a3 {[%emt 0:15:53]} Bxc3+ {[%emt 0:03:54]} 9. Nxc3 {[%emt 0:04:04]} dxc4 {[%emt 0:06:11]} 10. Bxc4 {[%emt 0:00:05]} Nc6 {[%emt 0:00:18]} 11. Be3 {[%emt 0:00:39]} b6 {[%emt 0:02:17]} 12. O-O {[%emt 0:05:43]} Bb7 {[%emt 0:03:34]} 13. Qd3 {[%emt 0:00:22]} h6 {[%emt 0:05:37] The position is equal.} 14. Rad1 {[%emt 0:04:53]} Ne7 {[%emt 0:01:08]} 15. Bf4 {[%emt 0:00:45]} Rc8 {[%emt 0:03:04]} 16. Ba2 {[%emt 0:04:29]} Ned5 {[%emt 0:04:29]} 17. Be5 {[%emt 0:02:37]} Nxc3 {[%emt 0:12:08]} 18. bxc3 {[%emt 0:00:24]} Be4 {[%emt 0:02:24]} (18... Ne4 {looks sharper.} 19. c4 Qg5 20. f3 f6) 19. Qe2 {[%emt 0:20:18]} Bg6 {[%emt 0:03:48]} 20. c4 {[%emt 0:00:26]} Re8 {[%emt 0:05:22]} 21. Qb2 {[%emt 0:02:02]} Nd7 {[%emt 0:11:22]} 22. Bg3 {[%emt 0:00:50]} Qe7 {[%emt 0:03:40]} 23. Rfe1 {[%emt 0:00:12]} Qf8 {[%emt 0:01:24]} 24. a4 {[%emt 0:03:17]} Qe7 {[%emt 0:05:56]} 25. a5 {[%emt 0:08:08]} bxa5 {[%emt 0:02:48]} ({Better is} 25... Qg5 $14) 26. c5 $16 {[%emt 0:00:08]} Qd8 {[%emt 0:01:39]} 27. Bc4 {[%emt 0:03:56][%mdl 1024] White has strong compensation.} Nb8 {[%emt 0:04:31] Against Ba6} 28. Bd6 {[%emt 0:01:20]} Qd7 {[%emt 0:02:14] Black is weak on the dark squares} 29. Bb5 {[%emt 0:02:41] White is much more active. A strong pair of Bishops.} Qb7 {[%emt 0:02:55]} 30. Qe2 {[%emt 0:03:01][%cal Od6b8]} Red8 {[%emt 0:00:06][%cal Og6e4]} 31. Rd2 {[%emt 0:00:32]} a6 {[%emt 0:05:00][%cal Ba7a6,Ba6a5,Ba5b4,Bb4b3][%mdl 32]} 32. Bc4 $36 {[%emt 0:00:26][%mdl 2048] White has good play.} Qb4 $1 {[%emt 0:00:32] [#] ...Rxd6 is the strong threat.} 33. Rc1 {[%emt 0:00:28][%cal Od2b2]} (33. Bxa6 $2 Nxa6 34. Red1 Nc7 $19) 33... Nc6 {[%emt 0:03:28]} 34. Qe3 {[%emt 0:00:37]} (34. h4 $5) 34... a4 {[%emt 0:01:46] Strongly threatening ...Na5.} 35. Qc3 {[%emt 0:00:28]} a5 {[%emt 0:00:36]} 36. f3 {[%emt 0:00:25] Prevents Be4} Rxd6 {[%emt 0:03:28]} 37. cxd6 {[%emt 0:00:05] aiming for d5.} Qxd6 {[%emt 0:00:09]} (37... Nd8 $16 38. Ra2 (38. d7 $2 Rxc4 39. Qxc4 Qxd2 $19) 38... a3) 38. Ba6 $18 {[%emt 0:00:34]} Rc7 {[%emt 0:00:36]} 39. Bb5 {[%emt 0:00:28]} (39. d5 $18 exd5 40. Bb5) 39... Qb4 $2 {[%emt 0:01:01][%mdl 8192] [#]} 40. Qxb4 $1 {[%emt 0:00:18] White is clearly winning.} ({Not} 40. Bxc6 Rxc6 41. Qxc6 Qxd2 $11) 40... axb4 {[%emt 0:00:02]} 41. Bxa4 {[%emt 0:31:11][%cal Bb5a4,Ba4c6,Bc6e4][%mdl 32]} ({Inferior is} 41. Bxc6 a3 42. Ra2 b3 43. Rxa3 b2 $11) 41... b3 {[%emt 0:02:19]} 42. Rxc6 {[%emt 0:00:00]} Rxc6 {[%emt 0:00:09]} 43. Bxc6 {[%emt 0:00:00]} Bc2 {[%emt 0:00:05]} 44. Be4 {[%emt 0:00:00] Weighted Error Value: White=0.14 (very precise) /Black=0.35.  Loses game:     	---       	Black=2      Mistake:       	White=1     	Black=2      Inaccurate:     	White=1     	Black=1      OK:         	White=10    	Black=10     Best:        	White=2     	Black=3      Strong:       	White=1     	Black=1} 1-0

[Event "Qatar Masters 2024"]
[Site "Doha"]
[Date "2024.12.03"]
[Round "1.37"]
[White "Abdulla, Murad"]
[Black "Shuvalova, Polina"]
[Result "0-1"]
[Annotator "RC"]
[ECO "B22"]
[WhiteElo "2329"]
[BlackElo "2495"]
[PlyCount "128"]
[EventDate "2024.11.24"]
[EventType "swiss"]
[EventCountry "QAT"]
[SourceTitle "playchess.com"]
[Source "ChessBase"]
[SourceQuality "1"]
[TimeControl "40/5400+30:1800+30"]

1. e4 {[%emt 0:00:07]} c5 {[%emt 0:00:05]} 2. c3 {[%emt 0:02:25]} Nf6 {[%emt 0:00:15]} 3. e5 {[%emt 0:00:11]} Nd5 {[%emt 0:00:06]} 4. Nf3 {[%emt 0:01:01]} Nc6 {[%emt 0:00:13]} 5. Bc4 {[%emt 0:02:30]} Nb6 {[%emt 0:00:14]} 6. Bb3 {[%emt 0:00:18]} c4 {[%emt 0:00:18]} 7. Bc2 {[%emt 0:00:17]} d6 {[%emt 0:00:04]} 8. exd6 {[%emt 0:03:03]} Qxd6 {[%emt 0:00:14]} 9. d4 {[%emt 0:00:41]} cxd3 {[%emt 0:09:23]} 10. Qxd3 {[%emt 0:01:41]} Qxd3 {[%emt 0:02:34]} 11. Bxd3 {[%emt 0:00:07]} e5 {[%emt 0:00:06]} 12. O-O {[%emt 0:08:38]} Be7 {[%emt 0:00:56]} 13. Re1 {[%emt 0:01:37]} f6 {[%emt 0:00:26]} 14. a4 {[%emt 0:02:50]} a5 {[%emt 0:07:44]} 15. Bc2 {[%emt 0:13:44]} Kf7 {[%emt 0:05:12]} 16. Na3 {[%emt 0:04:05]} Be6 {[%emt 0:05:10]} 17. Be3 {[%emt 0:03:01]} Nd5 {[%emt 0:05:13]} 18. Bd2 {[%emt 0:01:00]} g5 {[%emt 0:06:01]} 19. Rad1 {[%emt 0:08:43]} Rad8 {[%emt 0:00:53]} 20. Nb5 {[%emt 0:10:20]} h5 {[%emt 0:01:31]} 21. Bc1 {[%emt 0:02:45]} h4 {[%emt 0:04:50]} 22. h3 {[%emt 0:02:08]} Rd7 {[%emt 0:03:59]} 23. Nh2 {[%emt 0:14:26]} Rhd8 {[%emt 0:03:07]} 24. Ng4 {[%emt 0:00:06]} Bc5 {[%emt 0:00:31]} 25. Nh6+ {[%emt 0:04:19]} Kf8 {[%emt 0:03:32]} 26. Bf5 {[%emt 0:00:24]} Bxf5 {[%emt 0:01:18]} 27. Nxf5 {[%emt 0:00:04]} Kf7 {[%emt 0:00:07]} 28. Ne3 {[%emt 0:08:04]} Bxe3 {[%emt 0:06:15]} 29. fxe3 {[%emt 0:01:13]} Nb6 {[%emt 0:00:06]} 30. Rxd7+ {[%emt 0:00:18]} Nxd7 {[%emt 0:00:04]} 31. b4 {[%emt 0:01:53]} Nb6 {[%emt 0:01:29]} 32. bxa5 {[%emt 0:00:40]} Nxa5 {[%emt 0:05:31]} 33. Ba3 {[%emt 0:00:35]} Nbc4 {[%emt 0:01:04]} 34. Bb4 {[%emt 0:02:49]} Nb3 {[%emt 0:00:05]} 35. e4 {[%emt 0:01:05]} b6 {[%emt 0:00:52]} 36. Nc7 {[%emt 0:00:36]} Rd7 {[%emt 0:04:35]} 37. Nd5 {[%emt 0:00:07]} f5 {[%emt 0:00:11]} 38. Ne3 {[%emt 0:01:05]} Nxe3 {[%emt 0:02:01]} 39. Rxe3 {[%emt 0:00:02]} f4 {[%emt 0:00:06]} 40. Re1 {[%emt 0:00:15]} Kf6 {[%emt 0:17:45]} 41. Re2 {[%emt 0:27:19]} Nd2 {[%emt 0:08:02]} 42. a5 {[%emt 0:00:32]} bxa5 {[%emt 0:00:07]} 43. Bxa5 {[%emt 0:00:04]} Nc4 {[%emt 0:00:14]} 44. Bb4 {[%emt 0:01:00]} Rd1+ {[%emt 0:00:23]} 45. Kf2 {[%emt 0:01:35]} Nd2 {[%emt 0:00:38]} 46. Re1 {[%emt 0:00:05]} Rxe1 {[%emt 0:00:07]} 47. Kxe1 {[%emt 0:00:03]} Nxe4 {[%emt 0:00:04]} 48. Ke2 {[%emt 0:00:18]} Ke6 {[%emt 0:04:24]} 49. c4 {[%emt 0:00:51]} Nf6 {[%emt 0:01:23]} 50. Ba5 {[%emt 0:01:51]} Nd7 {[%emt 0:10:20]} 51. Bd8 {[%emt 0:00:56]} Kf5 {[%emt 0:00:03]} 52. Be7 {[%emt 0:00:12]} e4 {[%emt 0:00:25]} 53. c5 {[%emt 0:02:04]} Ne5 {[%emt 0:00:03]} 54. Bf8 {[%emt 0:00:49]} Nc6 {[%emt 0:01:41]} 55. Bg7 {[%emt 0:00:15]} g4 {[%emt 0:01:11]} 56. hxg4+ {[%emt 0:00:28]} Kxg4 {[%emt 0:00:04]} 57. Kf1 {[%emt 0:00:53]} e3 {[%emt 0:06:29]} 58. Bf6 {[%emt 0:00:27]} h3 {[%emt 0:04:57]} 59. gxh3+ {[%emt 0:00:08]} Kxh3 {[%emt 0:00:03]} 60. Ke2 {[%emt 0:00:35]} Kg2 {[%emt 0:00:11]} 61. Bh4 {[%emt 0:00:35]} Ne5 {[%emt 0:02:02]} 62. Be1 {[%emt 0:00:24]} Nc4 {[%emt 0:01:07]} 63. c6 {[%emt 0:00:50]} f3+ {[%emt 0:00:05]} 64. Kd3 {[%emt 0:00:15]} f2 {[%emt 0:00:13]} 0-1

[Event "Qatar Masters 2024"]
[Site "Doha"]
[Date "2024.12.03"]
[Round "1.38"]
[White "Madaminov, Mukhiddin"]
[Black "Ankit Ray"]
[Result "1/2-1/2"]
[Annotator "TA"]
[ECO "D37"]
[WhiteElo "2501"]
[BlackElo "2320"]
[PlyCount "136"]
[EventDate "2024.11.24"]
[EventType "swiss"]
[EventCountry "QAT"]
[SourceTitle "playchess.com"]
[Source "ChessBase"]
[SourceQuality "1"]
[TimeControl "40/5400+30:1800+30"]

{[%evp 44,136,5,10,12,0,0,-19,-22,-27,-52,-47,-57,-40,-48,-64,-56,-64,-59,-49,-46,-60,-62,-70,-11,-11,-11,-23,0,-18,0,0,0,-4,38,18,45,3,2,2,68,65,70,70,67,68,74,23,23,24,25,4,4,4,4,4,4,4,4,0,0,0,0,1,6,0,0,0,0,0,0,0,0,0,0,0,0,0,0,0,0,0,0,0,0,0,0,0,0,-8,-8,-57,-57,-57,-1]} 1. c4 {[%emt 0:00:14]} e6 {[%emt 0:00:23]} 2. Nc3 {[%emt 0:00:14]} d5 {[%emt 0:01:00]} 3. d4 {[%emt 0:00:09]} h6 {[%emt 0:00:14]} 4. Nf3 {[%emt 0:01:38]} Nf6 {[%emt 0:00:49]} 5. a3 {[%emt 0:02:06]} a6 {[%emt 0:03:39]} 6. c5 {[%emt 0:05:18] D37: Queen's Gambit Declined: 5 Bf4.} Nc6 {[%emt 0:03:24]} 7. Bf4 {[%emt 0:06:19]} g5 $146 {[%emt 0:06:46]} ({Predecessor:} 7... b6 8. cxb6 cxb6 9. Rc1 Bb7 10. e3 Be7 11. h3 O-O 12. Bd3 Rc8 13. O-O Na5 {1-0 Sargsyan,S (2628)-Sargissian,G (2681) Wch Blitz Warsaw 2021 (14)}) 8. Bg3 {[%emt 0:04:59]} Nh5 {[%emt 0:14:31]} 9. e3 {[%emt 0:08:04]} Nxg3 {[%emt 0:01:31]} 10. hxg3 {[%emt 0:00:00]} Bg7 {[%emt 0:00:46]} 11. Qc2 {[%emt 0:06:55]} O-O {[%emt 0:05:40]} 12. g4 {[%emt 0:03:34]} b6 {[%emt 0:10:48]} 13. cxb6 {[%emt 0:16:16]} cxb6 {[%emt 0:00:13]} 14. Bd3 {[%emt 0:00:11]} Ra7 {[%emt 0:12:11]} 15. Rc1 {[%emt 0:06:55]} Rc7 {[%emt 0:15:24]} 16. Qd1 {[%emt 0:00:20]} Re8 {[%emt 0:01:24]} 17. Bb1 {[%emt 0:02:46]} e5 {[%emt 0:02:07]} 18. dxe5 {[%emt 0:06:57]} Nxe5 {[%emt 0:00:21]} 19. Nxe5 {[%emt 0:02:10]} Rxe5 {[%emt 0:00:12]} 20. O-O {[%emt 0:03:25]} h5 {[%emt 0:01:36]} 21. gxh5 {[%emt 0:02:07]} g4 {[%emt 0:00:11]} 22. Ne2 {[%emt 0:01:38]} Rxc1 {[%emt 0:03:13]} 23. Qxc1 {[%emt 0:01:56]} Rxh5 {[%emt 0:00:13]} 24. Rd1 {[%emt 0:01:28]} Be5 {[%emt 0:02:57]} 25. g3 {[%emt 0:05:41]} Bb7 {[%emt 0:00:57]} 26. Be4 $1 {[%emt 0:01:26]} Qa8 $1 {[%emt 0:00:40]} 27. Bg2 {[%emt 0:05:35]} d4 $1 {[%emt 0:00:16]} 28. e4 $1 {[%emt 0:00:29]} Bxe4 {[%emt 0:00:29]} 29. Nf4 {[%emt 0:00:26]} Rh6 $1 {[%emt 0:05:49]} 30. Re1 {[%emt 0:04:46]} Bxg2 {[%emt 0:00:20]} 31. Nxg2 {[%emt 0:00:05]} Rh5 {[%emt 0:00:11]} 32. Nh4 {[%emt 0:00:45]} Kg7 {[%emt 0:03:36]} 33. Qd1 {[%emt 0:00:45]} Qc8 {[%emt 0:00:30]} (33... Rg5 $1 $15) 34. Re4 $11 {[%emt 0:00:17]} Rg5 {[%emt 0:00:13]} 35. Qe2 {[%emt 0:01:25]} f6 {[%emt 0:00:49]} 36. Ng2 {[%emt 0:00:24]} Qc1+ {[%emt 0:02:26]} 37. Ne1 {[%emt 0:00:09]} Kh6 {[%emt 0:01:01]} 38. Kf1 {[%emt 0:00:36]} d3 {[%emt 0:01:45]} 39. Qxd3 {[%emt 0:00:11]} Qxb2 {[%emt 0:00:12]} (39... b5 {simplifies} 40. b4 Qc3 41. Re2 Qxd3 42. Nxd3 Rf5) 40. Rb4 {[%emt 0:00:29]} Qc3 {[%emt 0:00:46]} 41. Rxb6 {[%emt 0:30:19]} Rh5 {[%emt 0:01:45]} ({Black should play} 41... a5 $11) 42. Qe4 $14 {[%emt 0:00:00]} (42. Rxa6 $2 {loses.} Rh1+ 43. Kg2 Qxe1 $19) 42... Qd4 {[%emt 0:08:16]} 43. Qxd4 {[%emt 0:00:00]} Bxd4 {[%emt 0:00:04]} 44. Rxa6 {[%emt 0:00:00]} Rh2 {[%emt 0:01:37]} 45. Nd3 {[%emt 0:00:00]} (45. Ng2 $16) 45... Rh1+ $1 $11 {[%emt 0:00:10]} 46. Ke2 {[%emt 0:00:00]} Ra1 {[%emt 0:00:09]} 47. Nb4 {[%emt 0:00:00]} Kg5 $1 {[%emt 0:01:50]} 48. Nc2 {[%emt 0:00:00]} Ra2 {[%emt 0:00:15]} 49. Rc6 {[%emt 0:00:00]} Ba7 {[%emt 0:03:28]} 50. Rc4 {[%emt 0:00:00]} f5 {[%emt 0:00:49]} 51. a4 {[%emt 0:00:00]} Kf6 {[%emt 0:01:34]} 52. f3 {[%emt 0:03:01]} gxf3+ {[%emt 0:00:35]} 53. Kxf3 {[%emt 0:00:06]} Rb2 {[%emt 0:00:36]} 54. a5 {[%emt 0:02:50]} Rb3+ {[%emt 0:00:20]} 55. Kg2 {[%emt 0:00:10]} Bb8 {[%emt 0:00:44]} 56. Rc6+ {[%emt 0:01:30]} Kg5 {[%emt 0:00:36]} 57. Nd4 {[%emt 0:00:50]} Rxg3+ {[%emt 0:00:31]} 58. Kf1 {[%emt 0:00:30]} Ra3 {[%emt 0:01:06]} 59. a6 {[%emt 0:00:24]} Kg4 {[%emt 0:01:36]} 60. Rg6+ {[%emt 0:01:06]} Kf4 {[%emt 0:00:17]} 61. Nb5 {[%emt 0:00:26]} Ra5 {[%emt 0:00:22]} 62. Rb6 {[%emt 0:00:09]} Be5 $1 {[%emt 0:00:16]} 63. Ke2 {[%emt 0:00:33]} Ke4 $1 {[%emt 0:00:11]} 64. Nd6+ {[%emt 0:00:52]} Bxd6 {[%emt 0:00:20]} 65. Rxd6 {[%emt 0:00:03]} Ra2+ {[%emt 0:00:06]} 66. Rd2 {[%emt 0:00:15]} Rxa6 {[%emt 0:00:25]} 67. Rb2 {[%emt 0:00:07]} (67. Kf2 $11) 67... Kf4 $15 {[%emt 0:00:15]} 68. Kf2 {[%emt 0:00:03]} Ke5 {[%emt 0:00:45]} (68... Kg4 $15) 1/2-1/2

[Event "Qatar Masters 2024"]
[Site "Doha"]
[Date "2024.12.03"]
[Round "1.39"]
[White "Omar, Noaman"]
[Black "Fawzy, Adham"]
[Result "0-1"]
[Annotator "TA"]
[ECO "E87"]
[WhiteElo "2315"]
[BlackElo "2498"]
[PlyCount "80"]
[EventDate "2024.11.24"]
[EventType "swiss"]
[EventCountry "QAT"]
[SourceTitle "playchess.com"]
[Source "ChessBase"]
[SourceQuality "1"]
[TimeControl "40/5400+30:1800+30"]

{[%evp 22,80,4,4,7,0,7,10,10,10,10,3,7,0,11,11,18,0,0,-11,-12,-45,-38,-42,-49,-92,-87,-94,-89,-91,-89,-89,-80,-130,-124,-131,-131,-146,-131,-175,-131,-179,-133,-137,-116,-137,-125,-147,-135,-151,-164,-503,-499,-491,-540,-545,-535,-736,-722,-577,-504]} 1. d4 {[%emt 0:00:31]} Nf6 {[%emt 0:00:55]} 2. c4 {[%emt 0:00:13]} g6 {[%emt 0:00:34]} 3. Nc3 {[%emt 0:00:13]} Bg7 {[%emt 0:00:12]} 4. e4 {[%emt 0:00:21]} d6 {[%emt 0:00:07]} 5. f3 {[%emt 0:01:00]} O-O {[%emt 0:07:23]} 6. Be3 {[%emt 0:00:29]} e5 {[%emt 0:07:30]} 7. d5 {[%emt 0:00:44]} Nh5 {[%emt 0:05:37]} 8. Qd2 {[%emt 0:05:41]} f5 {[%emt 0:02:31]} 9. O-O-O {[%emt 0:00:38]} Nd7 {[%emt 0:06:45]} 10. Nge2 {[%emt 0:27:40][%cal Bg1e2,Be2c1,Bc1b3][%mdl 32]} Ndf6 {[%emt 0:21:28]} 11. h3 {[%emt 0:04:24]} f4 {[%emt 0:15:18]} 12. Bf2 {[%emt 0:00:56]} b6 {[%emt 0:00:56]} 13. Kb1 {[%emt 0:00:57]} a5 {[%emt 0:02:01]} 14. Rg1 {[%emt 0:00:17]} Nd7 {[%emt 0:02:27] The position is equal.} 15. Nc1 {[%emt 0:11:52]} Nc5 {[%emt 0:01:09]} 16. Bd3 {[%emt 0:02:04]} Bd7 {[%emt 0:02:00]} 17. Bc2 {[%emt 0:04:17]} Qe7 {[%emt 0:04:19]} 18. Nb5 {[%emt 0:01:44]} Be8 {[%emt 0:05:00]} 19. Bxc5 {[%emt 0:12:34]} bxc5 {[%emt 0:00:46]} 20. Nb3 {[%emt 0:00:10]} Qd8 {[%emt 0:07:22]} 21. a4 {[%emt 0:09:38]} Qb8 {[%emt 0:00:29]} 22. Nxa5 {[%emt 0:03:36]} Qb6 {[%emt 0:00:31]} 23. Nc6 {[%emt 0:00:22]} Bxc6 {[%emt 0:00:58]} 24. dxc6 {[%emt 0:00:02]} Nf6 {[%emt 0:00:16]} 25. Nc3 {[%emt 0:03:06]} Rfb8 {[%emt 0:00:16]} 26. b3 {[%emt 0:00:40]} Qxc6 {[%emt 0:00:39]} 27. Kc1 {[%emt 0:01:46]} ({Better is} 27. Ka2) 27... Kh8 $17 {[%emt 0:02:19] Black is more active.} 28. Nd5 {[%emt 0:03:03] [#]} Nh5 $1 {[%emt 0:00:24]} 29. Nc3 {[%emt 0:02:21]} Qb7 {[%emt 0:02:52] White is weak on the dark squares} 30. Qd3 {[%emt 0:00:18]} Bf8 {[%emt 0:00:48]} 31. Ne2 {[%emt 0:00:48]} (31. h4 $17) 31... c6 {[%emt 0:00:38]} (31... Be7 $19 32. Nc3 Ng7) 32. Qc3 {[%emt 0:00:57]} Kg8 {[%emt 0:00:43]} 33. Rd2 {[%emt 0:01:43]} Qc7 {[%emt 0:00:13]} 34. Kd1 {[%emt 0:00:25]} Be7 {[%emt 0:00:45]} 35. g3 {[%emt 0:01:08]} fxg3 {[%emt 0:00:44]} 36. f4 $2 {[%emt 0:00:44] [#]} (36. Nxg3 {nothing else works.} Nf4 37. Rh2) 36... exf4 $19 {[%emt 0:00:36] Black is clearly winning.} ({Less strong is} 36... Nxf4 37. Qxg3 Rf8 38. Kc1 $17) 37. e5 {[%emt 0:00:52]} dxe5 {[%emt 0:00:14]} 38. Qf3 {[%emt 0:00:34]} Rd8 {[%emt 0:00:15] And now ...Rxd2+ would win.} 39. Rxd8+ {[%emt 0:00:06]} Rxd8+ {[%emt 0:00:23]} 40. Kc1 {[%emt 0:00:01]} Kg7 {[%emt 0:00:54] Weighted Error Value: White=0.39/Black=0.06 (flawless) .  Mistake:       	White=3     	Black=1      Inaccurate:     	White=4     	---        OK:         	White=6     	Black=14     Best:        	---       	Black=1} 0-1